bitfinex-derivatives/quotes_SOLF0:USTF0_20260115
["timestamp","ask_amount","ask_price","bid_price","bid_amount"]
[1768469314312,0.04856228,145.16,145.13,0.04871637]
[1768469316721,7.89597014,145.18,145.13,0.04871637]
[1768469317723,0.04439544,145.17,145.13,0.04871637]
[1768469321125,7.94036558,145.17,145.13,0.04871637]
[1768469321325,7.94036558,145.17,145.11,2.12612847]
[1768469322124,7.94036558,145.17,145.1,6.59897934]
[1768469322322,0.04738518,145.15,145.12,0.05163088]
[1768469322514,7.89597014,145.14,145.06,20.57618615]
[1768469322711,7.89597014,145.14,145.06,7.8204454]
[1768469322921,7.89597014,145.14,145.07,2.12612847]
[1768469323726,0.04885227,145.12,145.09,0.05086114]
[1768469324625,7.89597014,145.14,145.09,2.17698961]
[1768469324821,7.89597014,145.16,145.09,7.87130654]
[1768469325026,7.89597014,145.16,145.1,2.12612847]
[1768469325226,7.89597014,145.16,145.09,7.8204454]
[1768469325429,7.89597014,145.16,145.1,2.12612847]
[1768469325628,0.04927425,145.14,145.11,0.05240784]
[1768469332535,14.09737014,145.16,145.11,0.05240784]
[1768469333230,8.36804825,145.17,145.11,8.15612932]
[1768469333627,8.36804825,145.17,145.11,10.28225779]
[1768469334234,8.41636727,145.15,145.11,0.05240784]
[1768469336334,0.04831902,145.15,145.11,0.05240784]
[1768469337330,0.04831902,145.15,145.11,10.28225779]
[1768469339139,8.36804825,145.17,145.11,10.28225779]
[1768469340433,0.04453564,145.15,145.11,10.28225779]
[1768469340737,8.36804825,145.17,145.11,10.28225779]
[1768469347240,8.36804825,145.17,145.13,2.12612847]
[1768469347631,8.36804825,145.17,145.12,2.12612847]
[1768469349344,8.36804825,145.17,145.11,16.48545779]
[1768469349739,8.36804825,145.17,145.11,14.35932932]
[1768469349941,8.36804825,145.17,145.12,2.12612847]
[1768469351538,8.36804825,145.17,145.11,14.35932932]
[1768469351733,2.12612847,145.21,145.11,14.35932932]
[1768469352038,2.12612847,145.21,145.1,81.38]
[1768469352039,6.1992,145.21,145.15,0.04597658]
[1768469352338,83.52612847,145.24,145.16,2.12612847]
[1768469352540,2.12612847,145.25,145.19,0.04454714]
[1768469353041,2.12612847,145.25,145.16,2.12612847]
[1768469353744,8.36804825,145.24,145.16,2.12612847]
[1768469354042,0.05216439,145.21,145.19,0.04796625]
[1768469354242,8.42021264,145.21,145.15,14.30512148]
[1768469354438,8.42021264,145.21,145.15,16.43124995]
[1768469355144,8.42021264,145.21,145.17,2.12612847]
[1768469355445,0.05216439,145.21,145.17,2.1739039]
[1768469356141,0.05216439,145.21,145.17,0.04777543]
[1768469356332,0.05216439,145.21,145.17,2.1739039]
[1768469357741,0.05216439,145.21,145.17,0.04777543]
[1768469360142,0.05216439,145.21,145.17,2.1739039]
[1768469361146,8.36804825,145.23,145.17,10.03451223]
[1768469361748,8.36804825,145.23,145.17,2.1739039]
[1768469362250,0.04892954,145.21,145.17,2.1739039]
[1768469364657,0.04892954,145.21,145.17,0.04777543]
[1768469365054,0.04892954,145.21,145.17,2.1739039]
[1768469365352,0.04892954,145.21,145.17,0.04777543]
[1768469365553,0.04892954,145.21,145.17,2.1739039]
[1768469369449,0.04892954,145.21,145.17,0.04777543]
[1768469369658,7.61767696,145.21,145.13,7.82517627]
[1768469369851,7.56874742,145.21,145.13,7.82517627]
[1768469370858,0.0500791,145.18,145.16,0.05212051]
[1768469374759,7.56874742,145.2,145.16,0.05212051]
[1768469375658,0.04359935,145.19,145.16,0.05212051]
[1768469376454,7.61234677,145.19,145.16,0.05212051]
[1768469376658,7.61234677,145.19,145.13,7.82517627]
[1768469377858,7.61234677,145.19,145.15,0.04695066]
[1768469379950,7.61234677,145.19,145.11,7.82517627]
[1768469380758,13.81244677,145.19,145.11,7.82517627]
[1768469380953,7.56874742,145.18,145.11,7.82517627]
[1768469381148,7.56874742,145.18,145.14,0.0480499]
[1768469381356,0.04732305,145.16,145.14,0.0480499]
[1768469386161,13.76884742,145.19,145.14,0.0480499]
[1768469387061,0.04639113,145.18,145.14,0.0480499]
[1768469388260,7.61513855,145.18,145.11,7.82517627]
[1768469388863,0.04639113,145.18,145.12,7.82517627]
[1768469389162,7.56874742,145.22,145.15,7.82517627]
[1768469389358,7.56874742,145.22,145.17,0.05195941]
[1768469389560,6.1985,145.23,145.17,7.87713568]
[1768469390560,0.04652252,145.21,145.17,7.87713568]
[1768469393262,6.48278232,145.19,145.12,6.29715922]
[1768469394467,0.04697352,145.17,145.14,0.04956705]
[1768469394762,6.48278232,145.21,145.14,0.04956705]
[1768469395067,6.48278232,145.21,145.14,6.29715922]
[1768469396068,0.0487084,145.19,145.16,0.04465528]
[1768469396671,0.0487084,145.19,145.12,6.29715922]
[1768469397963,0.0487084,145.19,145.14,0.04372184]
[1768469398967,6.53149072,145.19,145.14,0.04372184]
[1768469399877,12.73159072,145.19,145.14,0.04372184]
[1768469401470,6.48278232,145.18,145.14,0.04372184]
[1768469401675,6.48278232,145.18,145.12,6.29715922]
[1768469401870,6.48278232,145.18,145.1,6.29715922]
[1768469402070,6.48278232,145.17,145.1,6.29715922]
[1768469402776,0.05110379,145.15,145.12,0.04429307]
[1768469403376,6.48278232,145.17,145.12,0.04429307]
[1768469404962,0.04895582,145.16,145.12,0.04429307]
[1768469406670,6.48278232,145.21,145.13,3.32126231]
[1768469406867,6.48278232,145.21,145.14,6.29715922]
[1768469407675,6.48278232,145.21,145.16,0.05217433]
[1768469408578,0.04348109,145.2,145.16,0.05217433]
[1768469412977,0.04348109,145.2,145.16,6.34933355]
[1768469415373,6.48278232,145.23,145.17,6.29715922]
[1768469416480,0.04577659,145.21,145.17,6.29715922]
[1768469421684,0.04577659,145.21,145.16,0.05217433]
[1768469424590,0.04577659,145.21,145.16,5.40079257]
[1768469426791,0.04577659,145.21,145.16,11.60189257]
[1768469427692,0.04577659,145.21,145.17,5.34861824]
[1768469432093,0.04577659,145.21,145.16,6.25327433]
[1768469432094,5.18936631,145.21,145.16,0.05217433]
[1768469434791,5.18936631,145.21,145.16,5.40079257]
[1768469438399,5.18936631,145.21,145.16,7.52636096]
[1768469439201,5.18936631,145.21,145.16,5.40079257]
[1768469439402,5.18936631,145.21,145.16,7.52636096]
[1768469440401,0.04577659,145.21,145.17,5.34861824]
[1768469441802,0.04577659,145.21,145.17,7.47418663]
[1768469442405,0.04577659,145.21,145.17,5.34861824]
[1768469442597,0.04577659,145.21,145.17,7.47418663]
[1768469443403,0.04577659,145.21,145.17,5.34861824]
[1768469443598,0.04577659,145.21,145.17,7.47418663]
[1768469444303,0.04577659,145.21,145.17,5.34861824]
[1768469444504,0.04577659,145.21,145.16,0.05217433]
[1768469445003,0.04577659,145.21,145.16,5.40079257]
[1768469446304,11.38856631,145.21,145.16,0.05217433]
[1768469454110,11.38856631,145.21,145.17,2.12556839]
[1768469454111,0.04577659,145.21,145.17,2.12556839]
[1768469454508,0.04577659,145.21,145.17,6.85711121]
[1768469455403,0.04577659,145.21,145.17,4.73154282]
[1768469455610,0.04577659,145.21,145.17,6.85711121]
[1768469458309,0.04577659,145.21,145.17,4.73154282]
[1768469458511,0.04577659,145.21,145.17,6.85711121]
[1768469460314,0.04577659,145.21,145.18,4.73154282]
[1768469460514,4.75240073,145.23,145.18,4.73154282]
[1768469461606,0.0528357,145.22,145.19,0.04364805]
[1768469463309,0.0528357,145.22,145.19,4.77519087]
[1768469465107,0.0528357,145.22,145.19,0.04364805]
[1768469465313,0.0528357,145.22,145.19,4.77519087]
[1768469466113,4.75240073,145.25,145.2,6.85711121]
[1768469466313,86.11240073,145.27,145.2,6.85711121]
[1768469466714,4.75240073,145.26,145.2,6.85711121]
[1768469467212,4.75240073,145.26,145.22,0.0485955]
[1768469467916,10.94940073,145.26,145.22,0.0485955]
[1768469469617,10.94990073,145.25,145.18,6.85711121]
[1768469469821,10.94990073,145.25,145.19,4.73154282]
[1768469470624,0.04594528,145.23,145.21,0.04917121]
[1768469475519,4.79834601,145.23,145.15,6.85711121]
[1768469476111,4.75240073,145.21,145.15,4.73154282]
[1768469476317,4.75240073,145.21,145.13,6.85711121]
[1768469476514,0.04433668,145.19,145.17,0.05250668]
[1768469476718,4.75240073,145.21,145.17,0.05250668]
[1768469477419,4.75240073,145.2,145.17,0.05250668]
[1768469477620,4.75240073,145.19,145.13,4.73154282]
[1768469478025,4.75240073,145.19,145.12,2.12556839]
[1768469478827,10.95260073,145.19,145.14,0.045158]
[1768469479824,4.75240073,145.17,145.11,6.85711121]
[1768469480425,4.75240073,145.17,145.11,4.73154282]
[1768469480929,4.75240073,145.17,145.13,0.05127785]
[1768469485134,6.87796912,145.17,145.13,0.05127785]
[1768469485336,4.16080799,145.16,145.13,0.05127785]
[1768469485535,4.21074378,145.16,145.09,6.49390076]
[1768469485737,4.21074378,145.16,145.09,12.69800076]
[1768469485935,4.21074378,145.16,145.09,6.2041]
[1768469486235,4.16080799,145.15,145.08,2.12556839]
[1768469486434,4.16080799,145.15,145.08,6.49390076]
[1768469486627,0.04967227,145.13,145.1,0.04477174]
[1768469488633,4.21048026,145.13,145.07,2.12556839]
[1768469488828,4.21048026,145.13,145.07,4.36833237]
[1768469489226,4.21048026,145.13,145.08,2.12556839]
[1768469489628,0.04967227,145.13,145.08,6.49390076]
[1768469489827,0.04967227,145.13,145.09,0.0475381]
[1768469492634,4.21048026,145.13,145.09,0.0475381]
[1768469493335,4.21048026,145.13,145.06,4.36833237]
[1768469494531,4.21048026,145.13,145.08,0.04412965]
[1768469495430,10.41328026,145.13,145.06,4.36833237]
[1768469495945,4.16080799,145.12,145.06,4.36833237]
[1768469496240,4.16080799,145.12,145.05,4.36833237]
[1768469496538,0.04738943,145.1,145.07,0.0526398]
[1768469500736,4.20819742,145.1,145.07,0.0526398]
[1768469501130,0.04738943,145.1,145.07,0.0526398]
[1768469502137,4.16080799,145.14,145.07,4.42097217]
[1768469502332,4.16080799,145.14,145.07,4.36833237]
[1768469503343,4.16080799,145.14,145.09,0.0458544]
[1768469503642,6.2015,145.16,145.09,4.41418677]
[1768469503841,10.36230799,145.16,145.09,4.41418677]
[1768469504739,4.20556722,145.14,145.09,0.0458544]
[1768469506236,4.20556722,145.14,145.05,13.89928881]
[1768469506440,4.16080799,145.14,145.05,13.89928881]
[1768469506742,4.16080799,145.14,145.06,4.36833237]
[1768469507240,4.16080799,145.14,145.09,0.04920503]
[1768469507838,4.16080799,145.13,145.09,0.04920503]
[1768469509945,0.04909867,145.12,145.09,0.04920503]
[1768469510537,4.20990666,145.12,145.05,13.89918881]
[1768469511141,4.20990666,145.12,145.05,10.57393237]
[1768469511547,4.20990666,145.12,145.07,0.0487858]
[1768469513550,4.20990666,145.12,145.04,3.97174191]
[1768469513744,4.16080799,145.12,145.04,3.97174191]
[1768469514451,0.04802576,145.09,145.04,3.97174191]
[1768469514649,0.04802576,145.09,145.04,10.17804191]
[1768469514850,0.04802576,145.09,145.05,0.05184928]
[1768469515748,4.18678775,145.09,145.02,3.97174191]
[1768469516741,10.39108775,145.09,145.02,3.97174191]
[1768469516941,4.13876199,145.08,145.02,3.97174191]
[1768469517145,4.13876199,145.08,145.04,0.05282304]
[1768469518544,6.25232576,145.09,145.04,0.05282304]
[1768469518545,4.18678775,145.09,145.04,0.05282304]
[1768469521544,4.13876199,145.12,145.05,7.29699835]
[1768469521950,4.13876199,145.12,145.05,3.97174191]
[1768469522149,4.13876199,145.12,145.05,7.29699835]
[1768469522856,0.04909764,145.1,145.07,0.04505547]
[1768469523358,4.13876199,145.14,145.07,0.04505547]
[1768469523551,4.13876199,145.14,145.05,7.29699835]
[1768469524143,4.13876199,145.14,145.08,3.97174191]
[1768469524349,4.13876199,145.14,145.08,4.02479187]
[1768469525259,87.6214,145.16,145.09,7.29699835]
[1768469525452,91.76016199,145.16,145.09,7.29699835]
[1768469525753,4.13876199,145.15,145.11,0.04465897]
[1768469526055,4.13876199,145.15,145.09,3.32525644]
[1768469526952,4.13876199,145.15,145.08,6.2045]
[1768469526953,0.04806052,145.13,145.08,9.52975644]
[1768469528054,0.04806052,145.13,145.09,0.04348383]
[1768469530657,4.13876199,145.15,145.09,3.36874027]
[1768469531560,0.052315,145.13,145.09,3.36874027]
[1768469532856,10.33936199,145.18,145.11,3.32525644]
[1768469533057,4.13876199,145.2,145.13,3.32525644]
[1768469533961,0.0441619,145.18,145.15,0.04798565]
[1768469534260,4.13876199,145.2,145.15,0.04798565]
[1768469534561,10.33686199,145.24,145.17,7.29699835]
[1768469534764,4.13876199,145.24,145.17,7.29699835]
[1768469534949,4.13876199,145.24,145.18,3.97174191]
[1768469535152,0.04399066,145.22,145.2,0.04709368]
[1768469537067,4.13876199,145.24,145.2,0.04709368]
[1768469538054,0.04927016,145.23,145.2,0.04709368]
[1768469538254,10.33596199,145.26,145.2,0.04709368]
[1768469539957,4.13876199,145.25,145.2,0.04709368]
[1768469543167,0.04746361,145.24,145.2,0.04709368]
[1768469545063,3.89667485,145.24,145.2,0.04709368]
[1768469547571,0.04746361,145.24,145.2,0.04709368]
[1768469547877,0.04746361,145.24,145.2,3.79386463]
[1768469548078,81.4,145.27,145.2,3.79386463]
[1768469548487,6.1963,145.28,145.2,3.79386463]
[1768469548488,10.04551124,145.28,145.2,3.79386463]
[1768469548675,3.84921124,145.28,145.21,3.74677095]
[1768469549084,0.05206599,145.26,145.23,0.05211186]
[1768469556787,3.84921124,145.25,145.18,3.74677095]
[1768469556978,3.84921124,145.25,145.18,5.87119563]
[1768469557683,3.84921124,145.25,145.19,3.74677095]
[1768469557890,3.84921124,145.25,145.21,0.05261173]
[1768469559091,0.0476975,145.24,145.21,0.05261173]
[1768469560183,0.0476975,145.24,145.19,3.74677095]
[1768469560184,2.17212218,145.24,145.19,3.74677095]
[1768469560378,3.84921124,145.19,145.13,3.74677095]
[1768469560688,2.12442468,145.17,145.1,3.74677095]
[1768469561488,0.04374662,145.15,145.12,0.04669026]
[1768469562190,2.12442468,145.18,145.12,0.04669026]
[1768469563391,0.05261304,145.16,145.12,0.04669026]
[1768469564295,2.12442468,145.19,145.12,3.79346121]
[1768469565595,0.02491807,145.17,145.12,3.79346121]
[1768469578799,96.4419,145.2,145.12,3.79346121]
[1768469578800,6.1997,145.2,145.13,3.50918861]
[1768469579803,6.1997,145.2,145.15,0.04815913]
[1768469581104,8.32452468,145.19,145.15,0.04815913]
[1768469581294,8.32452468,145.19,145.13,3.50918861]
[1768469582502,0.04587492,145.17,145.15,0.04526172]
[1768469590406,6.2001,145.19,145.15,3.55445033]
[1768469591903,9.8671637,145.21,145.15,3.55445033]
[1768469602314,11.99158838,145.21,145.15,3.55445033]
[1768469604216,5.41686419,145.19,145.15,0.04526172]
[1768469605018,2.12442468,145.16,145.11,3.56002309]
[1768469605516,5.41686419,145.17,145.11,3.56002309]
[1768469606220,0.04725059,145.15,145.13,0.04669932]
[1768469606918,0.04725059,145.15,145.09,11.88834777]
[1768469607520,0.04725059,145.15,145.1,3.56002309]
[1768469607813,0.04725059,145.15,145.11,0.05034041]
[1768469609521,6.2002,145.19,145.12,5.68444777]
[1768469609723,9.49263951,145.19,145.12,5.68444777]
[1768469610421,11.61706419,145.19,145.12,5.68444777]
[1768469610628,11.61706419,145.19,145.14,0.0481407]
[1768469611011,9.49263951,145.19,145.14,0.0481407]
[1768469611212,0.04699466,145.18,145.14,0.0481407]
[1768469611409,5.46385885,145.18,145.14,0.0481407]
[1768469611614,5.46385885,145.18,145.12,3.56002309]
[1768469612213,3.33943417,145.18,145.12,3.56002309]
[1768469612721,3.33943417,145.18,145.14,0.0448349]
[1768469623126,3.33943417,145.18,145.12,3.56002309]
[1768469623428,3.29243951,145.17,145.12,3.56002309]
[1768469624129,3.29243951,145.16,145.1,3.56002309]
[1768469624424,0.04722917,145.14,145.1,3.56002309]
[1768469624625,3.29243951,145.16,145.1,3.56002309]
[1768469625625,0.04429661,145.14,145.12,0.0457941]
[1768469632830,3.29243951,145.16,145.12,0.0457941]
[1768469634024,0.05085613,145.15,145.12,0.0457941]
[1768469638335,0.05085613,145.15,145.12,3.44448237]
[1768469638537,3.31404399,145.19,145.12,3.44448237]
[1768469638738,3.31404399,145.19,145.14,3.39868827]
[1768469639535,0.05053544,145.18,145.15,0.05225636]
[1768469639933,3.36457943,145.18,145.15,0.05225636]
[1768469640431,3.36457943,145.18,145.12,3.39868827]
[1768469641640,3.36457943,145.18,145.14,0.05086843]
[1768469642344,0.05053544,145.18,145.14,0.05086843]
[1768469642541,3.31404399,145.21,145.14,3.4495567]
[1768469643143,6.1975,145.25,145.16,3.39868827]
[1768469643345,3.31404399,145.23,145.16,3.39868827]
[1768469643643,3.3590533,145.21,145.15,3.32364666]
[1768469644142,3.3590533,145.21,145.14,6.72233493]
[1768469644343,3.3590533,145.21,145.14,3.39868827]
[1768469644746,3.3590533,145.21,145.16,0.04450267]
[1768469650449,0.04500931,145.21,145.16,3.44319094]
[1768469650954,0.04500931,145.21,145.16,9.64429094]
[1768469652245,0.04500931,145.21,145.17,3.39868827]
[1768469652443,3.31404399,145.23,145.17,9.59928827]
[1768469653555,0.05135092,145.21,145.17,9.59928827]
[1768469653854,3.31404399,145.23,145.17,9.59928827]
[1768469654758,3.31404399,145.25,145.18,12.92253493]
[1768469654952,3.31404399,145.25,145.2,0.04990278]
[1768469655660,9.51144399,145.25,145.2,0.04990278]
[1768469657261,3.31404399,145.28,145.22,3.32364666]
[1768469657453,3.31404399,145.28,145.24,0.04457009]
[1768469657849,6.1968,145.27,145.24,0.04457009]
[1768469658054,6.24137009,145.27,145.22,3.39868827]
[1768469658858,0.04457009,145.27,145.22,3.39868827]
[1768469659163,0.04457009,145.27,145.23,0.04690483]
[1768469659955,0.04457009,145.27,145.23,3.4455931]
[1768469660661,0.04457009,145.27,145.23,0.04690483]
[1768469669767,0.04457009,145.27,145.23,3.32558697]
[1768469670570,3.18913012,145.27,145.23,0.04690483]
[1768469670761,3.18913012,145.27,145.19,3.27868214]
[1768469670962,3.18913012,145.27,145.17,3.27868214]
[1768469671273,3.14456003,145.27,145.17,3.27868214]
[1768469671573,9.34136003,145.27,145.19,3.27868214]
[1768469671866,0.04404721,145.24,145.22,0.04373518]
[1768469677777,0.04404721,145.24,145.16,81.34]
[1768469677778,3.14456003,145.23,145.16,3.27868214]
[1768469677979,3.14456003,145.23,145.16,2.12483715]
[1768469678378,3.14456003,145.23,145.16,5.40351929]
[1768469679079,0.04844784,145.21,145.18,0.0465574]
[1768469694197,0.04844784,145.21,145.16,3.27868214]
[1768469694698,0.04844784,145.21,145.17,5.52921581]
[1768469694896,3.3398562,145.29,145.19,3.40437866]
[1768469695096,3.3398562,145.29,145.21,3.40437866]
[1768469695300,3.3398562,145.29,145.22,2.12483715]
[1768469695599,3.3398562,145.29,145.22,5.52921581]
[1768469695803,9.5358562,145.29,145.22,5.52921581]
[1768469696100,0.04773722,145.27,145.24,0.04465634]
[1768469704312,0.04773722,145.27,145.23,2.12483715]
[1768469704502,0.04773722,145.27,145.22,3.40437866]
[1768469704701,3.38759342,145.27,145.21,2.12483715]
[1768469705606,3.38759342,145.27,145.23,0.04821128]
[1768469705808,9.58439342,145.27,145.21,2.12483715]
[1768469706208,3.3398562,145.26,145.21,2.12483715]
[1768469707019,3.3398562,145.26,145.22,0.04987675]
[1768469709419,3.3398562,145.24,145.17,2.12483715]
[1768469709817,3.3398562,145.24,145.17,5.52921581]
[1768469710517,3.3398562,145.24,145.19,0.05095236]
[1768469710719,9.5369562,145.26,145.19,3.45533102]
[1768469710912,0.04819757,145.24,145.19,3.40437866]
[1768469711113,0.04819757,145.24,145.21,0.04515927]
[1768469735341,3.2305852,145.24,145.21,0.04515927]
[1768469742551,3.2305852,145.24,145.17,9.45980733]
[1768469742756,3.18238763,145.24,145.17,9.45980733]
[1768469743659,3.18238763,145.24,145.19,0.04722139]
[1768469747157,3.18238763,145.24,145.19,3.30642872]
[1768469748664,3.18238763,145.24,145.19,0.04722139]
[1768469749062,0.04574744,145.23,145.19,0.04722139]
[1768469753967,3.29422706,145.23,145.19,0.04722139]
[1768469761877,0.04574744,145.23,145.19,3.31843849]
[1768469762380,0.04574744,145.23,145.19,0.04722139]
[1768469762687,3.29422706,145.23,145.19,0.04722139]
[1768469764876,0.04574744,145.23,145.19,9.51823849]
[1768469765174,3.24847962,145.26,145.2,3.2712171]
[1768469765973,3.24847962,145.26,145.2,9.4706171]
[1768469766174,0.04362721,145.24,145.2,9.4706171]
[1768469766589,3.24847962,145.26,145.2,9.4706171]
[1768469770088,0.04767451,145.24,145.2,9.4706171]
[1768469771693,3.24847962,145.26,145.2,9.4706171]
[1768469774092,0.050244,145.24,145.2,9.4706171]
[1768469778295,3.24847962,145.26,145.2,9.4706171]
[1768469778796,90.80477962,145.28,145.21,3.2712171]
[1768469779493,90.80477962,145.28,145.23,0.04966048]
[1768469779689,3.24847962,145.27,145.23,0.04966048]
[1768469780490,3.24847962,145.29,145.23,3.32087758]
[1768469781093,6.1955,145.3,145.23,3.32087758]
[1768469781286,0.05228533,145.28,145.23,3.32087758]
[1768469782796,0.05228533,145.28,145.23,9.51907758]
[1768469789105,0.05228533,145.28,145.24,9.50868525]
[1768469789401,3.27760596,145.32,145.25,3.31108525]
[1768469790497,0.0461553,145.3,145.27,0.04603035]
[1768469796413,3.32376126,145.3,145.24,3.31108525]
[1768469797604,3.32376126,145.3,145.26,0.05096981]
[1768469806914,3.27760596,145.29,145.23,6.1979]
[1768469807608,3.27760596,145.29,145.23,9.50898525]
[1768469808017,3.27760596,145.29,145.25,0.04882505]
[1768469810821,0.0461553,145.3,145.25,0.04882505]
[1768469815921,0.0461553,145.3,145.25,3.16010508]
[1768469816119,3.15446489,145.33,145.27,3.11128003]
[1768469817423,3.15446489,145.33,145.29,0.04425604]
[1768469817827,0.05150593,145.32,145.29,0.04425604]
[1768469820528,3.20597082,145.32,145.25,11.43206731]
[1768469820830,3.15446489,145.32,145.26,3.11128003]
[1768469821242,3.15446489,145.34,145.28,3.11128003]
[1768469821733,0.04928577,145.32,145.3,0.04546373]
[1768469822339,4.3522964,145.39,145.32,3.11128003]
[1768469822640,3.15446489,145.38,145.31,2.12358728]
[1768469822822,3.15446489,145.37,145.31,2.12358728]
[1768469823233,5.27805217,145.37,145.29,2.12358728]
[1768469823538,0.04728636,145.34,145.28,5.23486731]
[1768469824132,0.04728636,145.34,145.29,3.11128003]
[1768469824637,0.04728636,145.34,145.3,0.04773566]
[1768469826843,0.04728636,145.34,145.3,5.28260297]
[1768469827044,3.15446489,145.39,145.32,2.12358728]
[1768469827746,3.15446489,145.39,145.32,5.23486731]
[1768469828046,0.05292267,145.37,145.34,0.05175927]
[1768469828638,3.15446489,145.39,145.34,0.05175927]
[1768469829751,0.04709363,145.38,145.34,0.05175927]
[1768469830251,0.04709363,145.38,145.34,3.1630393]
[1768469830436,3.15446489,145.41,145.34,3.1630393]
[1768469830637,5.27805217,145.4,145.34,3.1630393]
[1768469830952,5.27805217,145.4,145.34,3.11128003]
[1768469831154,3.15446489,145.4,145.34,3.11128003]
[1768469831546,0.02942505,145.38,145.36,0.04828855]
[1768469831955,3.18388994,145.38,145.32,3.11128003]
[1768469832651,5.30747722,145.38,145.32,3.11128003]
[1768469832948,3.15446489,145.37,145.31,8.31818728]
[1768469833148,3.15446489,145.37,145.34,0.04715829]
[1768469833357,2.15301233,145.38,145.34,0.04715829]
[1768469833358,0.02942505,145.38,145.34,0.04715829]
[1768469835355,2.12358728,145.37,145.34,0.04715829]
[1768469835755,3.18388994,145.38,145.34,0.04715829]
[1768469836056,5.30747722,145.38,145.34,0.04715829]
[1768469836252,3.15446489,145.37,145.31,3.11128003]
[1768469836851,0.02942505,145.38,145.33,5.23486731]
[1768469837046,81.32,145.43,145.34,3.11128003]
[1768469837256,3.15446489,145.44,145.35,3.11128003]
[1768469837458,3.19892256,145.4,145.32,3.11128003]
[1768469837649,0.04445767,145.4,145.35,3.11128003]
[1768469838153,0.04445767,145.4,145.36,3.11128003]
[1768469838457,20.87111278,145.45,145.37,5.23486731]
[1768469838641,20.87111278,145.45,145.38,3.11128003]
[1768469838842,18.7475255,145.45,145.38,3.11128003]
[1768469839441,3.15446489,145.44,145.38,3.11128003]
[1768469839655,3.15446489,145.44,145.4,0.04505002]
[1768469839859,0.04777714,145.42,145.4,0.04505002]
[1768469843960,15.59306061,145.45,145.4,0.04505002]
[1768469845060,0.05043699,145.44,145.4,0.04505002]
[1768469851561,3.06372473,145.44,145.4,0.04505002]
[1768469852066,3.01328774,145.43,145.37,3.29761141]
[1768469852868,3.01328774,145.43,145.37,9.48971141]
[1768469853070,3.01328774,145.43,145.38,2.12358728]
[1768469853263,3.01328774,145.43,145.39,0.04909629]
[1768469854662,0.05043699,145.44,145.39,3.3467077]
[1768469854873,3.01328774,145.5,145.43,5.42119869]
[1768469855269,3.01328774,145.5,145.43,3.29761141]
[1768469855468,3.01328774,145.5,145.43,5.42119869]
[1768469855664,3.01328774,145.5,145.43,9.48701141]
[1768469855868,0.04720696,145.48,145.45,0.05132526]
[1768469858271,0.04720696,145.48,145.41,3.29761141]
[1768469858272,0.04720696,145.48,145.42,2.12358728]
[1768469858776,3.0604947,145.48,145.41,5.42119869]
[1768469858974,3.0604947,145.48,145.41,3.29761141]
[1768469859270,5.18408198,145.48,145.43,0.05126526]
[1768469859669,3.01328774,145.47,145.43,0.05126526]
[1768469859873,5.13687502,145.47,145.39,5.42119869]
[1768469860073,3.01328774,145.47,145.39,5.42119869]
[1768469860268,5.13687502,145.47,145.39,11.61239869]
[1768469860470,5.13687502,145.47,145.4,3.29761141]
[1768469860777,5.13687502,145.5,145.41,5.42119869]
[1768469860976,5.13687502,145.5,145.42,0.04424922]
[1768469861371,3.01328774,145.5,145.42,0.04424922]
[1768469861676,3.01328774,145.49,145.42,0.04424922]
[1768469861872,3.01328774,145.49,145.41,3.29761141]
[1768469862178,0.0468062,145.46,145.44,0.04780156]
[1768469864676,3.01328774,145.49,145.44,0.04780156]
[1768469865680,0.04796763,145.48,145.44,0.04780156]
[1768469866778,3.06125537,145.48,145.44,0.04780156]
[1768469869079,0.04796763,145.48,145.44,0.04780156]
[1768469870689,3.12303553,145.48,145.44,0.04780156]
[1768469871786,3.0750679,145.47,145.39,3.29714812]
[1768469872486,3.0750679,145.47,145.39,9.48834812]
[1768469872878,0.05183283,145.44,145.42,0.05204635]
[1768469874676,3.12690073,145.44,145.36,3.29714812]
[1768469874874,3.0750679,145.44,145.36,3.29714812]
[1768469875685,3.0750679,145.44,145.39,0.04540627]
[1768469876089,3.0750679,145.42,145.34,3.29714812]
[1768469877082,3.0750679,145.42,145.34,9.49044812]
[1768469877281,0.04361968,145.39,145.37,0.04697234]
[1768469877589,0.04361968,145.39,145.34,3.29714812]
[1768469877991,0.04361968,145.39,145.32,84.53714812]
[1768469878294,0.04361968,145.39,145.3,3.29714812]
[1768469878295,3.11868758,145.39,145.3,3.29714812]
[1768469878484,3.0750679,145.39,145.3,3.29714812]
[1768469878689,3.0750679,145.39,145.33,0.04886282]
[1768469878690,0.05063229,145.36,145.33,0.04886282]
[1768469879994,3.12570019,145.36,145.3,3.29714812]
[1768469880393,3.12570019,145.36,145.28,81.24]
[1768469880687,3.0750679,145.35,145.27,3.29714812]
[1768469881086,0.04714212,145.32,145.3,0.05019001]
[1768469882692,3.0750679,145.35,145.3,0.05019001]
[1768469882894,9.2669679,145.38,145.3,0.05019001]
[1768469883094,3.0750679,145.38,145.3,6.65726696]
[1768469883691,81.26,145.4,145.3,6.65726696]
[1768469883692,3.0750679,145.46,145.37,3.29714812]
[1768469883895,3.0750679,145.46,145.39,3.29714812]
[1768469884106,3.0750679,145.5,145.41,3.29714812]
[1768469884892,0.05155484,145.47,145.44,0.04794963]
[1768469885905,0.05155484,145.47,145.41,3.29714812]